Cogmind - Beta 10.2 @@@ ROGUE MODE // 2021.11.23 @ 23:35:45 Player: Azken Zutik Result: Destroyed by Y-64 Sentinel with Wave Gun Performance ------------- Evolutions (5) 2500 Regions Visited (22) 4400 Robots Destroyed (230) 1150 Value Destroyed (15525) 15525 Prototype IDs (34) 680 Alien Tech Used (0) 0 Bonus (9980) 9980 TOTAL SCORE: 34235 Bonus ------- Triggered High Security 500 High Alert Combat Kills 2031 Follower Combat Kills 2439 Entered Garrisons 1600 Used RIF Installer 4000 Aligned with FarCom 300 Friendly Fire -890 Cogmind --------- Core Integrity 0/1000 Matter 300/300 Energy 100/100 System Corruption 5% Temperature Cool (9) Movement Core (50) Location -5/Garrison Parts ------- > --- POWER (1) -------- (None) > --- PROPULSION (3) --- (None) > --- UTILITY (9) ------ (None) > --- WEAPON (4) ------- (None) > --- INVENTORY (4) ---- Layered Heavy Armor Plating Relay Coupler [Swarmer] (31) Relay Coupler [Hunter] (21) Peak State ------------ > --- POWER ------------ Light Angular Momentum Engine > --- PROPULSION ------- Armored Wheel Armored Wheel Armored Wheel > --- UTILITY ---------- Large Storage Unit High-capacity Storage Unit High-capacity Storage Unit Layered Medium Armor Plating Layered Heavy Armor Plating Advanced Focal Shield Advanced Force Field Improved Remote Force Field > --- WEAPON ----------- Gauss Rifle Gauss Rifle Gauss Rifle Improved Remote Datajack > --- INVENTORY -------- Compact Battery Advanced Weapon Cycler Layered Heavy Armor Plating Layered Heavy Armor Plating Improved Remote Force Field Relay Coupler [Swarmer] Relay Coupler [Swarmer] Relay Coupler [Grunt] Relay Coupler [Grunt] Relay Coupler [Brawler] Relay Coupler [Duelist] Relay Coupler [Demolisher] Relay Coupler [Specialist] Relay Coupler [Hunter] Relay Coupler [Hunter] Skeleton Box Dynamic Insulation System Heavy Assault Rifle Gauss Rifle Gauss Rifle Heavy Machine Gun Improved Grenade Launcher Improved Remote Datajack [Rating: 83] Favorites ----------- Power Light Angular Momentum Engine Engine Light Angular Momentum Engine Power Core Enhanced Nuclear Core Propulsion Armored Wheel Treads Advanced Treads Wheel Armored Wheel Utility High-capacity Storage Unit Device Improved Terrain Scanner Storage High-capacity Storage Unit Processor Signal Interpreter Hackware Relay Coupler [Swarmer] Protection Hardened Medium Armor Plating Weapon Gauss Rifle Energy Gun Heavy EM Shotgun Ballistic Gun Gauss Rifle Ballistic Cannon Flak Cannon Launcher Advanced EMP Blaster Special Weapon Remote Datajack Impact Weapon Power Maul Slashing Weapon Great Axe Special Melee Weapon Datajack Build | -11 -10 -10 -9 -9 -9 -8 -8 -8 -8 -8 -7 -7 -7 -7 -6 -6 -6 -6 -5 -5 -5 -5 ------- Run | Scr Mat Min Mat Min Exi Min Mat Gar Mat Gar Fac Gar Fac Gar Fac Gar Fac Gar Fac Gar Fac Gar Slots Evolved 10 | . . . 2 . . . 2 . . . 2 . . . 2 . . . 2 . . . Power . | . . . . . . . . . . . . . . . . . . . . . . . Propulsion 1 | . . . . . . . . . . . 1 . . . . . . . . . . . Utility 7 | . . . 1 . . . 1 . . . 1 . . . 2 . . . 2 . . . Weapon 2 | . . . 1 . . . 1 . . . . . . . . . . . . . . . Parts Attached 408 | 7 8 . 13 . . . 28 50 25 31 12 25 6 25 6 42 . 55 2 43 7 23 Power 18 | 1 1 . 2 . . . 1 3 1 1 1 . . . . 3 . 2 . 1 1 . Engine 14 | 1 1 . 2 . . . 1 1 1 1 . . . . . 2 . 2 . 1 1 . Core 4 | . . . . . . . . 2 . . 1 . . . . 1 . . . . . . Reactor . | . . . . . . . . . . . . . . . . . . . . . . . Propulsion 39 | 3 2 . 3 . . . 5 2 5 1 4 1 . . 1 2 . 8 . 1 1 . Treads 25 | 2 2 . 3 . . . 5 1 5 1 3 . . . 1 2 . . . . . . Leg . | . . . . . . . . . . . . . . . . . . . . . . . Wheel 14 | 1 . . . . . . . 1 . . 1 1 . . . . . 8 . 1 1 . Hover . | . . . . . . . . . . . . . . . . . . . . . . . Flight . | . . . . . . . . . . . . . . . . . . . . . . . Utility 191 | 1 2 . 5 . . . 5 17 2 14 5 15 4 17 4 27 . 22 1 27 4 19 Device 45 | . . . . . . . 1 3 . 5 . 3 . 5 1 4 . 3 . 7 3 10 Storage 52 | 1 2 . 1 . . . . 3 . 3 2 5 3 6 . 9 . 7 . 9 . 1 Processor 1 | . . . 1 . . . . . . . . . . . . . . . . . . . Hackware 36 | . . . . . . . . 4 2 1 1 2 1 1 2 7 . 4 1 4 1 5 Protection 57 | . . . 3 . . . 4 7 . 5 2 5 . 5 1 7 . 8 . 7 . 3 Artifact . | . . . . . . . . . . . . . . . . . . . . . . . Weapon 160 | 2 3 . 3 . . . 17 28 17 15 2 9 2 8 1 10 . 23 1 14 1 4 Energy Gun 17 | . . . . . . . 4 2 . . . . . . . 3 . 8 . . . . Energy Cannon . | . . . . . . . . . . . . . . . . . . . . . . . Ballistic Gun 77 | 2 2 . 3 . . . 8 12 9 5 1 6 . 5 . 4 . 9 . 8 1 2 Ballistic Cannon 1 | . . . . . . . . . 1 . . . . . . . . . . . . . Launcher 6 | . . . . . . . . 1 2 3 . . . . . . . . . . . . Special Weapon 21 | . 1 . . . . . . 1 . . 1 3 1 3 . 1 . 3 1 5 . 1 Impact Weapon 12 | . . . . . . . 3 . 3 4 . . . . 1 . . 1 . . . . Slashing Weapon 12 | . . . . . . . 1 4 . . . . 1 . . 2 . 2 . 1 . 1 Piercing Weapon . | . . . . . . . . . . . . . . . . . . . . . . . Special Melee Weapon 14 | . . . . . . . 1 8 2 3 . . . . . . . . . . . . Unidentified Prototypes 2 | . . . . . . . 1 . . . 1 . . . . . . . . . . . Parts Lost 34 | . 1 1 . . . . 5 4 2 . . 1 . 2 . 2 . 8 . . 1 7 Power 2 | . 1 . . . . . . 1 . . . . . . . . . . . . . . Propulsion 4 | . . . . . . . 1 1 1 . . . . . . . . 1 . . . . Utility 9 | . . . . . . . 2 . . . . . . 1 . 1 . 2 . . . 3 Weapon 19 | . . 1 . . . . 2 2 1 . . 1 . 1 . 1 . 5 . . 1 4 Highest Loss Streak 7 | . 1 1 . . . . 4 1 1 . . 1 . 1 . 1 . 3 . . 1 7 Average Slot Usage (%) 95 | . 93 86 99 100 100 100 99 94 99 99 98 91 92 91 93 93 100 99 94 92 98 92 Engine 5 | . 13 14 11 11 11 11 9 6 9 9 3 . . . . 1 6 6 5 5 5 4 Core 2 | . . . . . . . . 1 . . 3 7 7 7 6 4 . . . . . . Treads 10 | . 27 28 22 22 22 22 18 14 14 18 18 7 7 7 6 8 20 8 . . . . Wheel 6 | . . . . . . . . 1 2 . 3 6 7 7 6 4 . 11 17 17 16 16 Device 4 | . . . . . . . 2 3 . 8 1 6 . 6 . 2 . 4 . 2 3 15 Storage 17 | . 22 28 25 22 22 22 18 12 27 16 28 17 31 10 33 17 46 18 41 23 47 11 Hackware 6 | . . . . . . . . 3 8 3 3 2 5 5 5 16 . 10 5 9 . 5 Protection 9 | . . . 6 11 11 11 15 15 . 6 3 10 . 13 6 8 . 11 . 7 . 9 Energy Gun 3 | . . . . . . . 5 15 . . . . . . . . . 9 11 . . . Ballistic Gun 20 | . 27 15 32 33 33 33 29 10 29 28 19 27 19 25 14 15 13 13 5 17 15 16 Special Weapon 2 | . . . . . . . . 1 . . 3 2 5 3 6 5 6 1 5 2 5 4 Special Melee Weapon 1 | . . . . . . . . 6 3 1 . . . . . . . . . . . . Naked Turns 27 | . . . . . . . . . . . . . . . . . . . . . . 27 Heaviest Build 264 | 11 55 55 75 64 64 64 78 86 93 94 127 123 183 181 190 231 231 235 235 257 264 264 Greatest Support 84 | 40 40 40 40 40 40 40 42 42 44 44 84 84 28 28 28 62 62 62 36 36 36 36 Greatest Overweight (x) 10 | 2 2 1 1 1 1 1 1 7 7 3 7 4 6 6 6 10 3 9 6 7 10 7 Average Overweight (x) 2 | . . 1 1 1 1 1 1 2 3 1 4 2 5 2 6 1 3 2 6 3 7 2 Largest Inventory Capacity 64 | 6 18 18 24 18 18 18 18 24 24 24 32 34 44 44 44 58 58 58 58 64 64 64 Average Capacity 20 | 5 12 18 19 18 18 18 18 12 24 16 30 19 37 14 44 23 58 25 58 32 64 18 Most Carried 64 | 6 18 18 18 18 18 18 18 24 24 24 32 34 38 44 43 58 58 58 58 64 64 63 Average Carried 18 | 5 9 18 16 18 17 18 17 10 23 16 29 18 36 13 41 20 57 21 57 27 63 18 Final Capacity 64 | 6 18 18 18 18 18 18 18 24 24 24 32 34 36 44 44 58 58 58 58 64 64 4 Final Carried 64 | 6 18 18 18 18 18 18 18 24 24 24 32 34 36 44 42 58 58 58 58 64 63 4 Class Distribution -------------------- 23% | Bothacker-Mutant 15% | Commander-Mutant 14% | Botlord-Mutant 12% | Mutant 7% | Tank 6% | Bothacker-Assassin 3% | Botlord-Skirmisher Dominant Class ---------------- Mutant | -10/Materials Mutant | -10/Mines Tank | -9/Materials Tank | -9/Mines Tank | -9/Exiles Skirmisher | -8/Mines Tank | -8/Materials Mutant | -8/Garrison Bothacker-Mutant | -8/Materials Bothacker-Assassin | -8/Garrison Bothacker-Mutant | -7/Factory Bothacker-Mutant | -7/Garrison Bothacker-Mutant | -7/Factory Bothacker-Mutant | -7/Garrison Botlord-Mutant | -6/Factory Botlord-Mutant | -6/Garrison Botlord-Mutant | -6/Factory Commander-Mutant | -6/Garrison Botlord-Mutant | -5/Factory Commander-Mutant | -5/Garrison Botlord-Mutant | -5/Factory Botlord-Mutant | -5/Garrison Resources | -11 -10 -10 -9 -9 -9 -8 -8 -8 -8 -8 -7 -7 -7 -7 -6 -6 -6 -6 -5 -5 -5 -5 ----------- Run | Scr Mat Min Mat Min Exi Min Mat Gar Mat Gar Fac Gar Fac Gar Fac Gar Fac Gar Fac Gar Fac Gar Matter Collected 12531 | 389 723 59 358 60 . . 1042 1148 915 811 60 1200 . 1146 188 1015 . 1346 . 1333 53 685 Remotely . | . . . . . . . . . . . . . . . . . . . . . . . Salvage Created 11206 | 197 911 94 432 105 . . 1093 1838 1061 935 60 793 66 848 . 431 . 1392 . 427 . 523 Parts 550 | 18 53 5 38 4 . . 63 68 72 44 2 35 . 40 . 13 . 50 . 25 . 20 Haulers Intercepted 8 | . 2 . 1 . . . 1 . 4 . . . . . . . . . . . . . Recyclers Shooed . | . . . . . . . . . . . . . . . . . . . . . . . Parts Field Recycled . | . . . . . . . . . . . . . . . . . . . . . . . Retrieved Matter . | . . . . . . . . . . . . . . . . . . . . . . . Parts Self-Destructed . | . . . . . . . . . . . . . . . . . . . . . . . Prevented . | . . . . . . . . . . . . . . . . . . . . . . . Kills | -11 -10 -10 -9 -9 -9 -8 -8 -8 -8 -8 -7 -7 -7 -7 -6 -6 -6 -6 -5 -5 -5 -5 ------- Run | Scr Mat Min Mat Min Exi Min Mat Gar Mat Gar Fac Gar Fac Gar Fac Gar Fac Gar Fac Gar Fac Gar Combat Hostiles Destroyed 180 | . 16 2 10 2 . . 19 26 13 17 . 16 . 22 . 9 . 15 . 6 . 7 Guns 158 | . 16 2 10 2 . . 19 17 9 8 . 16 . 22 . 9 . 15 . 6 . 7 AOE 19 | . . . . . . . . 7 4 8 . . . . . . . . . . . . Classes Destroyed 16 | 3 4 . 2 . . . 2 2 1 . . 1 . . . . . . . 1 . . Worker 8 | 2 1 . 1 . . . 1 . 3 . . . . . . . . . . . . . Builder 4 | . . . . . . . . . 4 . . . . . . . . . . . . . Tunneler 6 | 6 . . . . . . . . . . . . . . . . . . . . . . Hauler 8 | . 2 . 1 . . . 1 . 4 . . . . . . . . . . . . . Recycler 7 | 1 1 . . . . . . . 2 . 1 1 1 . . . . . . . . . Operator 4 | . . . 1 . . . . . 2 1 . . . . . . . . . . . . Watcher 9 | . 3 . 3 . . . 3 . . . . . . . . . . . . . . . Swarmer 28 | . 3 . 6 . . . . . 2 . . 3 . 9 . 3 . 1 . 1 . . Grunt 108 | . 13 2 1 2 . . 12 17 5 14 . 10 . 12 . 5 . 11 . . . 4 Brawler 4 | . . . . . . . 1 . 1 1 . . . . . . . 1 . . . . Duelist 7 | . . . . . . . 1 2 1 . . . . . . . . 1 . 1 . 1 Sentry 22 | . . . 3 . . . 5 4 3 1 . 2 . . . . . . . 1 . 3 Specialist 2 | . . . . . . . . 1 . . . . . . . 1 . . . . . . Hunter 9 | . . . . . . . . 3 1 1 . . . . . . . 2 . 2 . . Programmer 2 | . . . . . . . . . . . . 1 . 1 . . . . . . . . Behemoth 2 | . . . . . . . . . . . . . . . . . . . . 2 . . Best Kill Streak 8 | 2 5 2 4 2 . . 3 5 8 3 1 3 1 6 . 2 . 3 . 1 . 3 Combat Bots Only 6 | . 5 2 3 2 . . 3 5 4 3 . 3 . 6 . 2 . 3 . 1 . 3 Max Kills in Single Turn 3 | 1 1 1 2 1 . . 2 2 3 2 1 1 1 2 . 2 . 1 . 1 . 1 Gunslinging 1 | . . . . . . . . . . . . . . 1 . 1 . . . . . . Exploded 2 | . . . . . . . . 2 2 2 . . . . . . . . . . . . Melee . | . . . . . . . . . . . . . . . . . . . . . . . Uniques/NPCs Destroyed . | . . . . . . . . . . . . . . . . . . . . . . . Combat | -11 -10 -10 -9 -9 -9 -8 -8 -8 -8 -8 -7 -7 -7 -7 -6 -6 -6 -6 -5 -5 -5 -5 -------- Run | Scr Mat Min Mat Min Exi Min Mat Gar Mat Gar Fac Gar Fac Gar Fac Gar Fac Gar Fac Gar Fac Gar Damage Taken 10955 | . 832 151 284 74 . . 1007 1282 748 495 18 688 90 723 . 737 . 1226 . 1195 261 1144 Core 1992 | . 211 28 16 . . . 40 253 95 117 . 20 12 91 . 16 . 71 . 200 21 801 Absorbed by Shields 478 | . . . . . . . . . . 87 . 156 . 36 . . . 5 . 78 . 116 Core Remaining (%) 63 | 100 . 4 . . . 96 . . . 8 . . . 82 . . . 89 . . . . Volleys Fired 1039 | 29 81 10 26 6 . . 60 195 47 59 11 82 4 89 3 81 . 122 . 79 5 50 Largest 4 | 2 2 2 3 3 . . 4 4 4 4 3 4 4 4 1 4 . 4 . 4 2 4 Hottest 216 | 40 100 40 69 69 . . 168 173 120 112 79 107 107 107 30 134 . 216 . 112 56 112 Shots Fired 2021 | 58 140 13 78 18 . . 224 299 164 95 15 143 10 180 3 120 . 224 . 140 6 91 Gun 1775 | 58 120 13 78 18 . . 224 221 155 82 6 128 8 173 . 88 . 206 . 123 2 72 Cannon 2 | . . . . . . . . . 2 . . . . . . . . . . . . . Launcher 23 | . . . . . . . . 3 7 13 . . . . . . . . . . . . Special 221 | . 20 . . . . . . 75 . . 9 15 2 7 3 32 . 18 . 17 4 19 Kinetic 1588 | 58 120 13 78 18 . . 204 125 157 82 6 128 8 173 . 81 . 140 . 123 2 72 Thermal 125 | . 20 . . . . . . 75 . . . . . . . . . 30 . . . . Explosive 6 | . . . . . . . . 3 3 . . . . . . . . . . . . . Electromagnetic 176 | . . . . . . . 20 96 4 13 . . . . . 7 . 36 . . . . Robot Hit Streak 34 | 8 17 10 17 5 . . 11 34 10 14 11 9 4 8 2 19 . 15 . 14 9 9 Robot Miss Streak 8 | 2 2 1 2 2 . . 7 5 3 2 1 4 3 8 . 7 . 6 . 4 2 3 Penetration Max 1 | . . . . . . . . . 1 . . . . 1 . . . . . . . 1 Secondary Targets 18 | . 3 . 1 1 . . 1 3 2 . . 1 . 1 . 1 . 2 . . . 2 Max Gunslinging Chain 1 | . 1 . 1 1 . . 1 1 1 . . 1 . 1 . 1 . 1 . . . 1 Shots Hit Robots 1330 | 28 90 12 52 12 . . 151 232 103 54 12 90 6 96 2 88 . 159 . 82 4 57 Core Hits 616 | 9 38 4 20 4 . . 57 101 49 30 1 58 3 56 . 35 . 107 . 21 . 23 Critical Hits 25 | 1 1 . . . . . 1 6 1 2 . . . 1 . . . 4 . 6 . 2 Critical Kills 6 | . . . . . . . . 1 . . . . . 1 . . . 2 . 1 . 1 Critical Parts Destroyed 17 | 1 1 . . . . . 1 5 1 2 . . . . . . . 2 . 3 . 1 Melee Attacks 94 | . . . . . . . 8 22 13 14 6 . 3 . 5 5 2 2 . 8 . 6 Impact 26 | . . . . . . . 3 . 3 8 6 . . . 5 . . 1 . . . . Slashing 40 | . . . . . . . 4 11 . . . . 3 . . 5 2 1 . 8 . 6 Piercing . | . . . . . . . . . . . . . . . . . . . . . . . Sneak Attacks 10 | . . . . . . . 1 3 6 . . . . . . . . . . . . . Combat Hostiles 1 | . . . . . . . . 1 . . . . . . . . . . . . . . Follow-up Attacks . | . . . . . . . . . . . . . . . . . . . . . . . Damage Inflicted 22087 | 362 1083 151 804 150 . . 2115 3335 2676 1645 79 1468 109 1660 . 1316 . 2609 . 1505 . 1020 Guns 19070 | 362 1083 151 804 150 . . 2035 2304 1673 768 79 1468 109 1660 . 1316 . 2609 . 1505 . 994 Cannons 13 | . . . . . . . . . 13 . . . . . . . . . . . . . Explosions 2746 | . . . . . . . 80 799 990 877 . . . . . . . . . . . . Melee . | . . . . . . . . . . . . . . . . . . . . . . . Ramming 26 | . . . . . . . . . . . . . . . . . . . . . . 26 Kinetic 16369 | 362 1083 151 804 150 . . 1695 914 1686 768 79 1468 109 1660 . 1233 . 1708 . 1505 . 994 Thermal 1441 | . . . . . . . 80 734 . 152 . . . . . . . 475 . . . . Explosive 785 | . . . . . . . . 297 488 . . . . . . . . . . . . . Electromagnetic 3466 | . . . . . . . 340 1390 502 725 . . . . . 83 . 426 . . . . Impact . | . . . . . . . . . . . . . . . . . . . . . . . Slashing . | . . . . . . . . . . . . . . . . . . . . . . . Piercing . | . . . . . . . . . . . . . . . . . . . . . . . Highest Corruption 6 | . 4 4 . . . . . 5 6 6 . . . 1 . . . . . . . 5 Average Corruption 3 | . 4 4 . . . . . 5 5 2 . . . 1 . . . . . . . 4 Corruption Purged 8 | . . . . . . . . . . 7 . . . 1 . . . . . . . . Effects 164 | . 22 8 . . . . . 54 54 22 . . . 3 . . . . . . . 1 Message Errors 37 | . 6 4 . . . . . 11 9 6 . . . 1 . . . . . . . . Matter Fused 38 | . 5 3 . . . . . 10 14 5 . . . . . . . . . . . 1 Heat Flow Errors 10 | . 2 . . . . . . 2 5 1 . . . . . . . . . . . . Energy Discharges 18 | . 4 . . . . . . 8 3 2 . . . 1 . . . . . . . . Data Loss (minor) 24 | . 1 1 . . . . . 11 5 5 . . . 1 . . . . . . . . Data Loss (major) 3 | . . . . . . . . . 3 . . . . . . . . . . . . . Misfires 8 | . . . . . . . . 3 3 2 . . . . . . . . . . . . Targeting Errors 22 | . 2 . . . . . . 9 10 1 . . . . . . . . . . . . Weapon Failures 4 | . 2 . . . . . . . 2 . . . . . . . . . . . . . Overload Shots . | . . . . . . . . . . . . . . . . . . . . . . . Overflow Damage 92 | . . . . . . . 10 22 60 . . . . . . . . . . . . . Projectiles 2 | . . . . . . . . 2 . . . . . . . . . . . . . . Explosions 90 | . . . . . . . 10 20 60 . . . . . . . . . . . . . Melee . | . . . . . . . . . . . . . . . . . . . . . . . Knockbacks 1 | . . . . . . . . . 1 . . . . . . . . . . . . . Impact . | . . . . . . . . . . . . . . . . . . . . . . . Kinetic 1 | . . . . . . . . . 1 . . . . . . . . . . . . . Secondary . | . . . . . . . . . . . . . . . . . . . . . . . Self-Inflicted Damage 276 | . . . . . . . 40 120 27 76 . . . . . . . . . . . 13 Shots 10 | . . . . . . . 1 3 2 4 . . . . . . . . . . . . Rammed 6 | . . . . . . . . . . . . . . . . . . . . . . 6 Targets Rammed 6 | . . . . . . . . . . . . . . . . . . . . . . 6 Kicked . | . . . . . . . . . . . . . . . . . . . . . . . Crushed . | . . . . . . . . . . . . . . . . . . . . . . . Highest Temperature 567 | . 138 2 45 81 . . 414 530 226 88 9 336 27 327 12 220 . 480 . 567 39 317 Average Temperature 90 | . 61 2 11 38 . . 124 151 48 17 5 94 12 86 8 44 . 98 . 99 20 78 Received Heat Transfer 3095 | . 294 87 60 51 . . 585 324 270 107 . 203 9 280 . 231 . 279 . 129 51 135 Effects 38 | . . . . . . . 11 10 . . . . . . . . . 10 . 6 . 1 Shutdowns 7 | . . . . . . . 3 1 . . . . . . . . . 2 . 1 . . Energy Bleed 9 | . . . . . . . 3 2 . . . . . . . . . 2 . 1 . 1 Interference 14 | . . . . . . . 4 3 . . . . . . . . . 6 . 1 . . Matter Decay 2 | . . . . . . . . 2 . . . . . . . . . . . . . . Damage (minor) 4 | . . . . . . . 1 1 . . . . . . . . . . . 2 . . Damage (core) 2 | . . . . . . . . 1 . . . . . . . . . . . 1 . . Siege Activations . | . . . . . . . . . . . . . . . . . . . . . . . Robots Corrupted 5 | . . . . . . . . 2 . 1 . . . . . . . 2 . . . . Combat Hostiles 3 | . . . . . . . . 2 . 1 . . . . . . . . . . . . Parts Fried 8 | . . . . . . . 1 4 . 2 . . . . . . . 1 . . . . Impact Corruptions . | . . . . . . . . . . . . . . . . . . . . . . . Robots Melted 1 | . . . . . . . . 1 . . . . . . . . . . . . . . Combat Hostiles . | . . . . . . . . . . . . . . . . . . . . . . . Parts Melted 4 | . . . . . . . . 3 . . . . . . . . . 1 . . . . Heat Transferred 3314 | . . . . . . . 50 2374 . 150 . . . . . . . 740 . . . . Parts Sabotaged . | . . . . . . . . . . . . . . . . . . . . . . . Parts Stolen . | . . . . . . . . . . . . . . . . . . . . . . . Parts Stripped . | . . . . . . . . . . . . . . . . . . . . . . . Power Chain Reactions 11 | . . . . . . . 1 7 . 3 . . . . . . . . . . . . Missiles Intercepted . | . . . . . . . . . . . . . . . . . . . . . . . Alert | -11 -10 -10 -9 -9 -9 -8 -8 -8 -8 -8 -7 -7 -7 -7 -6 -6 -6 -6 -5 -5 -5 -5 ------- Run | Scr Mat Min Mat Min Exi Min Mat Gar Mat Gar Fac Gar Fac Gar Fac Gar Fac Gar Fac Gar Fac Gar Peak Influence 1992 | 40 241 65 249 50 . . 269 1242 831 1228 670 788 418 1047 673 991 522 1074 563 1114 1304 1992 Initial 772 | . 3 25 . . . . . 177 605 540 644 125 413 263 549 471 520 365 563 394 584 772 Average 734 | 14 90 48 96 23 . . 110 813 537 1017 466 583 395 700 616 848 521 866 563 798 935 1217 Maximum Alert Level 5 | . 1 . 1 . . . 1 4 3 4 2 3 2 3 2 3 2 3 2 4 4 5 Low Security (%) 11 | 100 95 100 89 100 . 100 85 3 . . 35 2 . . . . . . . . . . Level 1 7 | . 4 . 10 . . . 14 15 3 . . 15 72 19 . . . 5 . 2 . . Level 2 26 | . . . . . . . . 20 88 21 64 34 27 34 100 21 100 18 100 49 21 . Level 3 36 | . . . . . . . . 26 7 19 . 47 . 45 . 78 . 75 . 18 57 41 Level 4 17 | . . . . . . . . 33 . 58 . . . . . . . . . 29 21 46 Level 5 . | . . . . . . . . . . . . . . . . . . . . . . . High Security . | . . . . . . . . . . . . . . . . . . . . . . 11 Max Security . | . . . . . . . . . . . . . . . . . . . . . . . Squads Dispatched 23 | . 3 . 2 . . . 3 . 4 . 1 . . . . . . . . . 2 8 Investigation 2 | . 1 . . . . . 1 . . . . . . . . . . . . . . . Extermination 1 | . . . . . . . . . . . 1 . . . . . . . . . . . Reinforcement 7 | . 2 . 2 . . . 1 . 1 . . . . . . . . . . . 1 . Assault 10 | . . . . . . . . . 1 . . . . . . . . . . . 1 8 Garrison 3 | . . . . . . . 1 . 2 . . . . . . . . . . . . . Intercept . | . . . . . . . . . . . . . . . . . . . . . . . Construction Impeded 1 | . . . . . . . . . . . . . . . . . . . . . 1 . Haulers Reinforced . | . . . . . . . . . . . . . . . . . . . . . . . Alert ID Control Effect 32 | . . . . . . . . . . 1 . 4 1 1 . 9 . 2 . 9 . 5 Stealth | -11 -10 -10 -9 -9 -9 -8 -8 -8 -8 -8 -7 -7 -7 -7 -6 -6 -6 -6 -5 -5 -5 -5 --------- Run | Scr Mat Min Mat Min Exi Min Mat Gar Mat Gar Fac Gar Fac Gar Fac Gar Fac Gar Fac Gar Fac Gar Distress Signals 17 | . . . 2 . . . 7 . 4 . . . . . 2 . . . . . 1 1 Communications Jammed . | . . . . . . . . . . . . . . . . . . . . . . . Distress Signals . | . . . . . . . . . . . . . . . . . . . . . . . Times Spotted 446 | . 29 2 21 2 . . 34 39 42 27 3 27 5 30 5 31 . 32 . 24 15 78 Peak Tracking Total 18 | . 4 2 5 2 . . 4 6 5 7 2 5 3 6 2 4 . 5 . 4 5 18 Tactical Retreats 45 | . . . . . . . 3 8 5 9 . 2 1 3 . 3 . 6 . 1 . 4 Traps | -11 -10 -10 -9 -9 -9 -8 -8 -8 -8 -8 -7 -7 -7 -7 -6 -6 -6 -6 -5 -5 -5 -5 ------- Run | Scr Mat Min Mat Min Exi Min Mat Gar Mat Gar Fac Gar Fac Gar Fac Gar Fac Gar Fac Gar Fac Gar Traps Triggered 78 | . 1 . . . . . 1 10 . 13 . 9 1 4 . 13 . 7 . 12 1 6 Indirectly 7 | . . . . . . . . . . 7 . . . . . . . . . . . . Trap Hack Attempts 107 | . . . . . . . . 63 . 44 . . . . . . . . . . . . Triggered 1 | . . . . . . . . 1 . . . . . . . . . . . . . . Disarmed 1 | . . . . . . . . . . 1 . . . . . . . . . . . . Reprogrammed 14 | . . . . . . . . 9 . 5 . . . . . . . . . . . . Reused 4 | . . . . . . . . 4 . . . . . . . . . . . . . . Traps Extracted . | . . . . . . . . . . . . . . . . . . . . . . . Installed . | . . . . . . . . . . . . . . . . . . . . . . . Triggered 8 | . . . . . . . . 4 . 3 . . . . . . . 1 . . . . Exploded 1 | . . . . . 1 . . . . . . . . . . . . . . . . . Machines | -11 -10 -10 -9 -9 -9 -8 -8 -8 -8 -8 -7 -7 -7 -7 -6 -6 -6 -6 -5 -5 -5 -5 ---------- Run | Scr Mat Min Mat Min Exi Min Mat Gar Mat Gar Fac Gar Fac Gar Fac Gar Fac Gar Fac Gar Fac Gar Machines Disabled 56 | . 1 . . . . . 3 6 3 3 1 8 . 6 . 6 . 6 . 6 5 2 Max in Single Turn 2 | . 1 . . . . . 1 2 1 1 1 2 . 2 . 2 . 2 . 2 . 1 Garrison Relay 29 | . . . . . . . . 4 . 3 . 4 . 4 . 4 . 4 . 4 . 2 Phase Generator 6 | . . . . . . . . 1 . . . 1 . 1 . 1 . 1 . 1 . . Machines Sabotaged . | . . . . . . . . . . . . . . . . . . . . . . . Garrisons Compromised . | . . . . . . . . . . . . . . . . . . . . . . . Overloaded Fab Kills . | . . . . . . . . . . . . . . . . . . . . . . . Fab Network Shutdowns . | . . . . . . . . . . . . . . . . . . . . . . . Hacking | -11 -10 -10 -9 -9 -9 -8 -8 -8 -8 -8 -7 -7 -7 -7 -6 -6 -6 -6 -5 -5 -5 -5 --------- Run | Scr Mat Min Mat Min Exi Min Mat Gar Mat Gar Fac Gar Fac Gar Fac Gar Fac Gar Fac Gar Fac Gar Machines Accessed 36 | . 8 . 4 . 1 . 8 . 4 . 4 . 1 . 3 . 1 . 1 . 1 . Terminals 22 | . 6 . 3 . . . 7 . 2 . 2 . . . 2 . . . . . . . Fabricators 1 | . . . . . . . . . . . 1 . . . . . . . . . . . Repair Stations 1 | . 1 . . . . . . . . . . . . . . . . . . . . . Recycling Units 1 | . 1 . . . . . . . . . . . . . . . . . . . . . Scanalyzers 2 | . . . 1 . . . . . 1 . . . . . . . . . . . . . Garrison Access 8 | . . . . . . . 1 . 1 . 1 . 1 . 1 . 1 . 1 . 1 . Total Hacks 80 | . 29 . 7 . 1 . 13 . 11 . 11 . 1 . 4 . 1 . 1 . 1 . Successful 42 | . 12 . 3 . 1 . 6 . 7 . 6 . 1 . 3 . 1 . 1 . 1 . Failed 38 | . 17 . 4 . . . 7 . 4 . 5 . . . 1 . . . . . . . Catastrophic 5 | . 1 . 2 . . . 2 . . . . . . . . . . . . . . . Database Lockouts . | . . . . . . . . . . . . . . . . . . . . . . . Manual 30 | . 13 . 3 . 1 . 5 . 2 . 4 . . . 2 . . . . . . . Terminals 54 | . 20 . 6 . . . 12 . 4 . 9 . . . 3 . . . . . . . Fabricators 1 | . . . . . . . . . . . 1 . . . . . . . . . . . Repair Stations 5 | . 5 . . . . . . . . . . . . . . . . . . . . . Recycling Units 4 | . 4 . . . . . . . . . . . . . . . . . . . . . Scanalyzers 7 | . . . 1 . . . . . 6 . . . . . . . . . . . . . Garrison Access 8 | . . . . . . . 1 . 1 . 1 . 1 . 1 . 1 . 1 . 1 . Terminal Hacks 21 | . 7 . 2 . 1 . 5 . . . 5 . . . 1 . . . . . . . Record 4 | . . . . . . . 3 . . . . . . . 1 . . . . . . . Part Schematic 2 | . 2 . . . . . . . . . . . . . . . . . . . . . Prototype ID Bank 4 | . 2 . 1 . . . 1 . . . . . . . . . . . . . . . Level Access Points 1 | . . . 1 . . . . . . . . . . . . . . . . . . . Branch Access Points 1 | . 1 . . . . . . . . . . . . . . . . . . . . . Unreport Threat 2 | . . . . . . . . . . . 2 . . . . . . . . . . . Hauler Manifests 2 | . 1 . . . . . . . . . 1 . . . . . . . . . . . Registered Components 1 | . 1 . . . . . . . . . . . . . . . . . . . . . Zone Layout 3 | . . . . . . . 1 . . . 2 . . . . . . . . . . . EX-Prototype ID Bank 1 | . . . . . 1 . . . . . . . . . . . . . . . . . Fabricator Hacks . | . . . . . . . . . . . . . . . . . . . . . . . Repair Station Hacks 3 | . 3 . . . . . . . . . . . . . . . . . . . . . Scan Component 2 | . 2 . . . . . . . . . . . . . . . . . . . . . Repair 1 | . 1 . . . . . . . . . . . . . . . . . . . . . Recycling Unit Hacks 1 | . 1 . . . . . . . . . . . . . . . . . . . . . Retrieve Components 1 | . 1 . . . . . . . . . . . . . . . . . . . . . Scanalyzer 5 | . . . . . . . . . 5 . . . . . . . . . . . . . Insert Component 3 | . . . . . . . . . 3 . . . . . . . . . . . . . Analyze 2 | . . . . . . . . . 2 . . . . . . . . . . . . . Garrison Access Hacks 8 | . . . . . . . 1 . 1 . 1 . 1 . 1 . 1 . 1 . 1 . Unlock Access 8 | . . . . . . . 1 . 1 . 1 . 1 . 1 . 1 . 1 . 1 . Unauthorized Hacks 4 | . 1 . 1 . . . . . 1 . . . . . 1 . . . . . . . Terminals 3 | . . . 1 . . . . . 1 . . . . . 1 . . . . . . . Assimilate 3 | . . . 1 . . . . . 1 . . . . . 1 . . . . . . . Fabricators . | . . . . . . . . . . . . . . . . . . . . . . . Repair Stations . | . . . . . . . . . . . . . . . . . . . . . . . Recycling Units 1 | . 1 . . . . . . . . . . . . . . . . . . . . . Reject 1 | . 1 . . . . . . . . . . . . . . . . . . . . . Scanalyzers . | . . . . . . . . . . . . . . . . . . . . . . . Garrison Access . | . . . . . . . . . . . . . . . . . . . . . . . Data Cores Recovered 2 | . . . . . . . . . 1 . . . . . 1 . . . . . . . Used 1 | . . . . . . . . . . . . . . . 1 . . . . . . . Hacking Detections 28 | . 7 . 3 . . . 8 . 3 . 4 . . . 2 . . . . . 1 . Full Trace Events 1 | . 1 . . . . . . . . . . . . . . . . . . . . . Feedback Events . | . . . . . . . . . . . . . . . . . . . . . . . Feedback Blocked . | . . . . . . . . . . . . . . . . . . . . . . . Robot Schematics Acquired . | . . . . . . . . . . . . . . . . . . . . . . . Robots Built . | . . . . . . . . . . . . . . . . . . . . . . . Matter . | . . . . . . . . . . . . . . . . . . . . . . . Time . | . . . . . . . . . . . . . . . . . . . . . . . Total Robot Build Rating . | . . . . . . . . . . . . . . . . . . . . . . . Part Schematics Acquired 3 | . 2 . . . . . . . 1 . . . . . . . . . . . . . Parts Built . | . . . . . . . . . . . . . . . . . . . . . . . Matter . | . . . . . . . . . . . . . . . . . . . . . . . Time . | . . . . . . . . . . . . . . . . . . . . . . . Total Part Build Rating . | . . . . . . . . . . . . . . . . . . . . . . . Parts Repaired 1 | . 1 . . . . . . . . . . . . . . . . . . . . . Time 26 | . 26 . . . . . . . . . . . . . . . . . . . . . Parts Recycled . | . . . . . . . . . . . . . . . . . . . . . . . Recycled Matter . | . . . . . . . . . . . . . . . . . . . . . . . Retrieved Matter . | . . . . . . . . . . . . . . . . . . . . . . . Retrieved Components 9 | . 9 . . . . . . . . . . . . . . . . . . . . . Parts Scanalyzed 2 | . . . . . . . . . 2 . . . . . . . . . . . . . Part Schematics Acquired 1 | . . . . . . . . . 1 . . . . . . . . . . . . . Parts Damaged . | . . . . . . . . . . . . . . . . . . . . . . . Bothacking | -11 -10 -10 -9 -9 -9 -8 -8 -8 -8 -8 -7 -7 -7 -7 -6 -6 -6 -6 -5 -5 -5 -5 ------------ Run | Scr Mat Min Mat Min Exi Min Mat Gar Mat Gar Fac Gar Fac Gar Fac Gar Fac Gar Fac Gar Fac Gar Used RIF Installer 8 | . . . . . . . . 1 . 1 . 1 . 1 . 1 . 1 . 1 . 1 Hotswap 1 | . . . . . . . . . . . . 1 . . . . . . . . . . Command Fork 1 | . . . . . . . . . . . . . . . . . . . . . . 1 Robot Detection 1 | . . . . . . . . . . . . . . 1 . . . . . . . . Watcher Feeds 1 | . . . . . . . . . . . . . . . . . . 1 . . . . Alert ID Control 1 | . . . . . . . . . . 1 . . . . . . . . . . . . Structural Interface 1 | . . . . . . . . . . . . . . . . . . . . 1 . . Program Shield 1 | . . . . . . . . . . . . . . . . 1 . . . . . . Robots Hacked 95 | . . . . . . . 1 8 4 6 7 8 1 6 1 17 . 10 . 13 2 11 Non-combat 13 | . . . . . . . 1 . 3 . 7 . . 1 . . . 1 . . . . Combat 82 | . . . . . . . . 8 1 6 . 8 1 5 1 17 . 9 . 13 2 11 Robot Hacks Applied 114 | . . . . . . . 1 9 9 6 8 10 2 6 2 22 . 11 . 14 3 11 parse_system 17 | . . . . . . . 1 3 3 . 1 2 . 1 . 4 . 2 . . . . no_distress 2 | . . . . . . . . . 1 . 1 . . . . . . . . . . . map_walls 4 | . . . . . . . . . 2 . 2 . . . . . . . . . . . block_reporting 1 | . . . . . . . . . 1 . . . . . . . . . . . . . map_route 1 | . . . . . . . . . . . 1 . . . . . . . . . . . find_garrison 5 | . . . . . . . . . 2 . . . 1 . 1 . . . . . 1 . scatter_targeting 4 | . . . . . . . . . . 1 . 1 1 . . . . . . . 1 . disable_weapons 2 | . . . . . . . . . . . . . . . . 2 . . . . . . reboot_system 7 | . . . . . . . . . . 2 . . . . . 1 . . . 2 . 2 overwrite_iff 18 | . . . . . . . . 1 . 2 . 2 . 3 . 4 . 3 . 1 . 2 formatsys_low 3 | . . . . . . . . . . . 3 . . . . . . . . . . . formatsys_high 50 | . . . . . . . . 5 . 1 . 5 . 2 1 11 . 6 . 11 1 7 Relay Couplers Released 113 | . . . . . . . . 17 . 11 . 19 . 16 . 14 . 16 . 12 . 8 Machine Destruction 113 | . . . . . . . . 17 . 11 . 19 . 16 . 14 . 16 . 12 . 8 Attached 36 | . . . . . . . . 4 2 1 1 2 1 1 2 7 . 4 1 4 1 5 Robots Rewired 1 | . . . . . . . . 1 . . . . . . . . . . . . . . Allies Hacked 1 | . . . . . . . . . . . . . . . . . . . . . . 1 Hacks Repelled . | . . . . . . . . . . . . . . . . . . . . . . . Allies | -11 -10 -10 -9 -9 -9 -8 -8 -8 -8 -8 -7 -7 -7 -7 -6 -6 -6 -6 -5 -5 -5 -5 -------- Run | Scr Mat Min Mat Min Exi Min Mat Gar Mat Gar Fac Gar Fac Gar Fac Gar Fac Gar Fac Gar Fac Gar Total Allies 78 | . . . 1 . . . . 7 1 3 3 7 . 5 1 15 . 9 . 12 1 13 Largest Group 27 | . . . 1 1 1 1 1 5 5 2 3 8 4 2 3 11 11 18 16 27 21 20 Highest-Rated Group 1028 | . . . 10 10 10 10 10 79 79 30 20 80 36 44 76 346 346 540 516 1028 795 757 Highest-Rated Ally 81 | . . . 10 10 10 10 10 18 18 16 15 12 12 32 32 47 47 47 47 81 49 49 Total Orders 116 | . . . . . . . . 10 6 3 1 11 1 6 3 16 . 12 . 24 2 21 STAY 65 | . . . . . . . . 7 2 2 . 5 1 3 1 12 . 7 . 15 1 9 FOLLOW 21 | . . . . . . . . . . . . 3 . . . 3 . 3 . 5 . 7 GUARD 25 | . . . . . . . . 3 3 1 . 3 . 2 . 1 . 2 . 4 1 5 AID 5 | . . . . . . . . . 1 . 1 . . 1 2 . . . . . . . Ally Attacks 478 | . . . . . . . . 9 44 7 . 44 5 15 17 30 . 12 . 63 88 144 Total Damage 12785 | . . . . . . . . 166 903 131 . 566 47 131 511 533 . 165 . 1487 3393 4752 Kills 105 | . . . . . . . . 1 10 1 . 4 1 2 5 9 . 3 . 14 21 34 Allies Corrupted 2 | . . . . . . . . . . . . . . . . . . . . . 1 1 Allies Melted . | . . . . . . . . . . . . . . . . . . . . . . . Intel | -11 -10 -10 -9 -9 -9 -8 -8 -8 -8 -8 -7 -7 -7 -7 -6 -6 -6 -6 -5 -5 -5 -5 ------- Run | Scr Mat Min Mat Min Exi Min Mat Gar Mat Gar Fac Gar Fac Gar Fac Gar Fac Gar Fac Gar Fac Gar Robot Analysis Total . | . . . . . . . . . . . . . . . . . . . . . . . Derelict Logs Recovered 1 | . . . . 1 . . . . . . . . . . . . . . . . . . Drone Launches . | . . . . . . . . . . . . . . . . . . . . . . . Drone Recoveries . | . . . . . . . . . . . . . . . . . . . . . . . Exploration | -11 -10 -10 -9 -9 -9 -8 -8 -8 -8 -8 -7 -7 -7 -7 -6 -6 -6 -6 -5 -5 -5 -5 ------------- Run | Scr Mat Min Mat Min Exi Min Mat Gar Mat Gar Fac Gar Fac Gar Fac Gar Fac Gar Fac Gar Fac Gar Turns Passed 55110 | 519 1865 484 831 203 421 244 2208 6814 1824 7628 761 4435 321 5716 238 6702 81 5449 100 5444 457 2365 Spaces Moved 23620 | 267 832 246 334 88 234 131 808 2936 651 1860 378 2147 191 1956 79 3287 31 2239 36 3247 234 1408 Core 73 | 31 . . . . . . . . . . . . . . . . . . . . . 42 Treads 9404 | 236 832 246 334 88 234 131 808 2168 494 1860 178 6 . . . 707 31 1051 . . . . Legs . | . . . . . . . . . . . . . . . . . . . . . . . Wheels 14143 | . . . . . . . . 768 157 . 200 2141 191 1956 79 2580 . 1188 36 3247 234 1366 Hover . | . . . . . . . . . . . . . . . . . . . . . . . Flight . | . . . . . . . . . . . . . . . . . . . . . . . Fastest Speed 50 | 50 160 180 180 180 180 180 172 120 150 145 150 110 140 110 160 110 215 110 150 100 150 50 Average Speed 148 | 153 171 180 180 180 180 180 175 175 190 167 174 125 150 123 160 139 215 150 150 125 160 117 Slowest Speed 345 | 160 200 180 180 180 180 180 180 210 250 205 240 180 160 160 160 345 215 215 150 160 190 160 Overloaded Moves . | . . . . . . . . . . . . . . . . . . . . . . . Propulsion Burnouts . | . . . . . . . . . . . . . . . . . . . . . . . Robots Hopped . | . . . . . . . . . . . . . . . . . . . . . . . Cave-ins Triggered 2 | . 1 . . . . . . 1 . . . . . . . . . . . . . . Exploration Rate (%) 53 | 8 96 64 33 28 61 46 65 99 35 81 11 99 8 99 4 98 1 97 1 99 10 83 Regions Visited 22 Branch Regions 4 Pre-discovered Areas 1 | . . . . 1 . . . . . . . . . . . . . . . . . . Known Exits Taken 10 | . 1 . . . . 1 1 . 1 . 1 . 1 . 1 . 1 . 1 . 1 . Unknown Exits Taken 5 | 1 . 1 1 1 1 . . . . . . . . . . . . . . . . . Scrap Searched 2 | . . 1 . . . 1 . . . . . . . . . . . . . . . . Spaces Dug 65 | . 20 . . . . . 6 2 3 7 6 . 3 . 4 2 2 . . 4 . 6 Terrain Destroyed 658 | . 20 . . . . . 9 117 33 11 6 151 3 77 4 46 2 78 . 88 . 13 Melee 42 | . . . . . . . 6 2 3 4 6 . 3 . 4 2 2 . . 4 . 6 Projectile 47 | . 20 . . . . . . 3 3 3 . 1 . 1 . . . 2 . 7 . 7 AOE 569 | . . . . . . . 3 112 27 4 . 150 . 76 . 44 . 76 . 77 . . Terrain Rammed . | . . . . . . . . . . . . . . . . . . . . . . . Walls Destroyed . | . . . . . . . . . . . . . . . . . . . . . . . Machines Disabled . | . . . . . . . . . . . . . . . . . . . . . . . Actions | -11 -10 -10 -9 -9 -9 -8 -8 -8 -8 -8 -7 -7 -7 -7 -6 -6 -6 -6 -5 -5 -5 -5 --------- Run | Scr Mat Min Mat Min Exi Min Mat Gar Mat Gar Fac Gar Fac Gar Fac Gar Fac Gar Fac Gar Fac Gar Total 42055 | 320 1090 275 512 119 235 140 1442 4317 1104 6276 464 3782 212 5129 180 5291 43 4145 82 4515 311 2071 Wait 15485 | 1 136 20 113 26 . 10 504 948 350 4173 29 1347 1 2957 85 1668 9 1569 44 947 62 486 Move 23600 | 266 831 245 333 87 233 130 808 2935 650 1859 377 2146 190 1955 79 3286 30 2238 35 3245 234 1408 Hop . | . . . . . . . . . . . . . . . . . . . . . . . Pick Up 589 | 14 23 . 13 . 1 . 18 50 7 47 16 67 5 54 1 81 1 89 1 82 2 17 Fast Attach 35 | . 1 . 1 . . . . 2 5 2 6 . . . 1 6 . 4 . 4 3 . Attach 107 | 7 2 . 5 . . . 9 12 1 5 1 9 . 8 2 11 . 13 1 12 1 8 Detach 5 | 1 . . . . . . . 1 . . . 1 . . . 1 . . . 1 . . Swap 266 | . 5 . 7 . . . 19 36 19 24 5 16 6 17 3 25 . 38 1 27 3 15 Drop 328 | 2 11 . 14 . 1 . 16 32 12 30 13 41 3 17 1 29 1 50 . 30 1 24 Fire 1039 | 29 81 10 26 6 . . 60 195 47 59 11 82 4 89 3 81 . 122 . 79 5 50 Melee 94 | . . . . . . . 8 22 13 14 6 . 3 . 5 5 2 2 . 8 . 6 Ram 6 | . . . . . . . . . . . . . . . . . . . . . . 6 Kick . | . . . . . . . . . . . . . . . . . . . . . . . Crush . | . . . . . . . . . . . . . . . . . . . . . . . Escape Stasis 390 | . . . . . . . . 21 . 19 . 72 . 32 . 98 . 20 . 80 . 48 Rewire 4 | . . . . . . . . . . . . 1 . . . . . . . . . 3 Trap 107 | . . . . . . . . 63 . 44 . . . . . . . . . . . . Miscellaneous . | . . . . . . . . . . . . . . . . . . . . . . . Route ------- -11/Scrapyard -10/Materials (discovered 4 exits: *Mat x3 / *Min) -10/Mines -9/Materials (discovered 4 exits: *Mat x3 / [*Min]) -9/Mines (discovered 2 exits: *Exi / [*Zio]) -9/Exiles -8/Mines -8/Materials (discovered 4 exits: *Fac x3 / Gar) -8/Garrison (discovered 3 exits: *Mat x3) -8/Materials -8/Garrison (discovered 2 exits: *Fac x2) -7/Factory -7/Garrison (discovered 3 exits: *Fac x3) -7/Factory -7/Garrison (discovered 3 exits: *Fac x3) -6/Factory -6/Garrison (discovered 3 exits: *Fac x3) -6/Factory -6/Garrison (discovered 3 exits: *Fac x3) -5/Factory -5/Garrison (discovered 3 exits: *Fac x3) -5/Factory -5/Garrison (discovered 2 exits: [*Fac x2]) History --------- Turn | Location | Event 14 | -11/Scrapyard | Discovered new exit (range 16) 520 | -11/Scrapyard | Entered Materials 521 | -10/Materials | Build established: Mutant 567 | -10/Materials | Identified exit to Mines 880 | -10/Materials | Discovered new exit (range 8) 1083 | -10/Materials | Discovered new exit (range 5) 1431 | -10/Materials | Crushed by falling debris 1431 | -10/Materials | Core integrity fell below 50% 1617 | -10/Materials | Repaired Lgt. Treads 1747 | -10/Materials | Core integrity fell below 20% 1810 | -10/Materials | Discovered new exit (range 10) 2385 | -10/Materials | Entered Mines 2859 | -10/Mines | Discovered new exit (range 5) 2869 | -10/Mines | Entered Materials 2869 | -9/Materials | Evolved 2 slots: Utility x1, Weapon x1 3188 | -9/Materials | Discovered new exit (range 12) 3429 | -9/Materials | Build established: Tank 3449 | -9/Materials | Identified exit to Materials 3700 | -9/Materials | Entered Mines 3700 | -9/Mines | Accompanied by 1 ally 3731 | -9/Mines | Learned location of Storage (-7) 3850 | -9/Mines | A Derelict revealed a hidden shortcut to a safe place 3883 | -9/Mines | Deemed a non-threat by the Exiles lab entrance 3883 | -9/Mines | Discovered new exit (range 5) 3903 | -9/Mines | Entered Exiles 3903 | -9/Exiles | Accompanied by 1 ally 3966 | -9/Exiles | Met 8R-AWN 4004 | -9/Exiles | Met EX-HEX 4065 | -9/Exiles | Met EX-BIN 4087 | -9/Exiles | Aligned with FarCom system 4089 | -9/Exiles | Given EX-Vault access code 4132 | -9/Exiles | Opened EX-Vault 4147 | -9/Exiles | Found Skeleton Box 4184 | -9/Exiles | Warned to stay clear of 0b10 Research branches 4207 | -9/Exiles | Exiles lab attacked by MAIN.C 4301 | -9/Exiles | Discovered new exit (range 14) 4324 | -9/Exiles | Left Exiles lab with Skeleton Box 4324 | -9/Exiles | Entered Mines 4324 | -8/Mines | Accompanied by 1 ally 4548 | -8/Mines | Discovered exit to Materials (range 5) 4568 | -8/Mines | Entered Materials 4568 | -8/Materials | Accompanied by 1 ally 4568 | -8/Materials | Evolved 2 slots: Utility x1, Weapon x1 4954 | -8/Materials | Discovered new exit (range 4) 5727 | -8/Materials | Lost 4 parts (1n1u2w) 5939 | -8/Materials | Discovered new exit (range 16) 6469 | -8/Materials | Discovered new exit (range 16) 6713 | -8/Materials | Garrison activated, responded to threat 6776 | -8/Materials | Identified exit to Garrison 6776 | -8/Materials | Entered Garrison 6785 | -8/Garrison | Installed Relay Interface Framework 6930 | -8/Garrison | Triggered checkpoint 7003 | -8/Garrison | Garrison Relay disabled 7299 | -8/Garrison | Build established: Mutant 8206 | -8/Garrison | Discovered new exit (range 10) 8278 | -8/Garrison | Triggered checkpoint 8330 | -8/Garrison | Garrison Relay disabled 8846 | -8/Garrison | Discovered new exit (range 13) 9122 | -8/Garrison | Triggered checkpoint 9418 | -8/Garrison | Triggered checkpoint 9458 | -8/Garrison | Garrison Relay disabled 9563 | -8/Garrison | Triggered checkpoint 9592 | -8/Garrison | Discovered new exit (range 15) 10041 | -8/Garrison | Triggered checkpoint 11125 | -8/Garrison | Build established: Scavenger-Mutant 11326 | -8/Garrison | Garrison Relay disabled 11390 | -8/Garrison | Crushed by falling debris 11390 | -8/Garrison | Core integrity fell below 50% 11574 | -8/Garrison | Phase Generator disabled 11748 | -8/Garrison | Triggered checkpoint 12090 | -8/Garrison | Build established: Commander-Mutant 12976 | -8/Garrison | Build established: Bothacker-Mutant 13590 | -8/Garrison | Entered Materials 13590 | -8/Materials | Accompanied by 5 allies 14596 | -8/Materials | Build established: Scavenger-Skirmisher 15190 | -8/Materials | First assault squad dispatched 15239 | -8/Materials | Garrison activated, responded to threat 15317 | -8/Materials | Identified exit to Garrison 15414 | -8/Materials | Entered Garrison 15414 | -8/Garrison | Accompanied by 1 ally 15423 | -8/Garrison | Expanded RIF knowledge: Alert ID Control 15897 | -8/Garrison | Build established: Bothacker-Mutant 16239 | -8/Garrison | Build established: Bothacker-Skirmisher 16733 | -8/Garrison | Triggered checkpoint 17079 | -8/Garrison | Triggered checkpoint 17117 | -8/Garrison | Garrison Relay disabled 17312 | -8/Garrison | Triggered checkpoint 17413 | -8/Garrison | Build established: Bothacker-Mutant 17776 | -8/Garrison | Triggered checkpoint 17897 | -8/Garrison | Triggered checkpoint 18010 | -8/Garrison | Discovered new exit (range 8) 18076 | -8/Garrison | Triggered checkpoint 18096 | -8/Garrison | Garrison Relay disabled 18230 | -8/Garrison | Discovered new exit (range 14) 18354 | -8/Garrison | Triggered checkpoint 18405 | -8/Garrison | Garrison Relay disabled 18554 | -8/Garrison | Spotted B-75 Beast 18560 | -8/Garrison | Core integrity fell below 20% 19086 | -8/Garrison | Build established: Scavenger-Tank 20207 | -8/Garrison | Build established: Bothacker-Assassin 23042 | -8/Garrison | Entered Factory 23042 | -7/Factory | Accompanied by 1 ally 23042 | -7/Factory | Evolved 2 slots: Propulsion x1, Utility x1 23710 | -7/Factory | Build established: Bothacker-Mutant 23749 | -7/Factory | Identified exit to Garrison 23803 | -7/Factory | Entered Garrison 23803 | -7/Garrison | Accompanied by 3 allies 23924 | -7/Garrison | Triggered checkpoint 23952 | -7/Garrison | Garrison Relay disabled 24298 | -7/Garrison | Triggered checkpoint 24627 | -7/Garrison | Phase Generator disabled 24850 | -7/Garrison | Triggered checkpoint 25088 | -7/Garrison | Triggered checkpoint 25148 | -7/Garrison | Discovered new exit (range 13) 25172 | -7/Garrison | Expanded RIF knowledge: Hotswap 25415 | -7/Garrison | Triggered checkpoint 25758 | -7/Garrison | Discovered new exit (range 5) 25858 | -7/Garrison | Triggered checkpoint 25872 | -7/Garrison | Garrison Relay disabled 25977 | -7/Garrison | Discovered new exit (range 9) 26027 | -7/Garrison | Triggered checkpoint 26088 | -7/Garrison | Garrison Relay disabled 26236 | -7/Garrison | Garrison Relay disabled 28238 | -7/Garrison | Entered Factory 28238 | -7/Factory | Accompanied by 4 allies 28517 | -7/Factory | Identified exit to Garrison 28559 | -7/Factory | Entered Garrison 28850 | -7/Garrison | Build established: Bothacker-Assassin 29032 | -7/Garrison | Triggered checkpoint 29175 | -7/Garrison | Garrison Relay disabled 29473 | -7/Garrison | Build established: Bothacker-Mutant 29742 | -7/Garrison | Triggered checkpoint 29979 | -7/Garrison | Triggered checkpoint 30324 | -7/Garrison | Triggered checkpoint 30494 | -7/Garrison | Discovered new exit (range 14) 31009 | -7/Garrison | Discovered new exit (range 9) 31026 | -7/Garrison | Expanded RIF knowledge: Robot Detection 31399 | -7/Garrison | Discovered new exit (range 5) 31676 | -7/Garrison | Phase Generator disabled 31963 | -7/Garrison | Triggered checkpoint 32047 | -7/Garrison | Garrison Relay disabled 32248 | -7/Garrison | Triggered checkpoint 32296 | -7/Garrison | Garrison Relay disabled 32612 | -7/Garrison | Build established: Bothacker-Tank 32988 | -7/Garrison | Triggered checkpoint 33012 | -7/Garrison | Garrison Relay disabled 33274 | -7/Garrison | Build established: Bothacker-Mutant 33945 | -7/Garrison | Build established: Botlord-Mutant 34275 | -7/Garrison | Entered Factory 34275 | -6/Factory | Accompanied by 2 allies 34275 | -6/Factory | Evolved 2 slots: Utility x2 34428 | -6/Factory | Identified exit to Garrison 34513 | -6/Factory | Entered Garrison 34513 | -6/Garrison | Accompanied by 1 ally 34819 | -6/Garrison | Phase Generator disabled 35099 | -6/Garrison | Garrison Relay disabled 35170 | -6/Garrison | Triggered checkpoint 35197 | -6/Garrison | Build established: Bothacker-Mutant 35297 | -6/Garrison | Triggered checkpoint 36090 | -6/Garrison | Triggered checkpoint 36296 | -6/Garrison | Discovered new exit (range 10) 36318 | -6/Garrison | Expanded RIF knowledge: Program Shield 36573 | -6/Garrison | Build established: Botlord-Skirmisher 36721 | -6/Garrison | Discovered new exit (range 13) 36843 | -6/Garrison | Triggered checkpoint 37179 | -6/Garrison | Triggered checkpoint 37201 | -6/Garrison | Garrison Relay disabled 37248 | -6/Garrison | Discovered new exit (range 13) 37464 | -6/Garrison | Build established: Botlord-Mutant 37756 | -6/Garrison | Garrison Relay disabled 37948 | -6/Garrison | Triggered checkpoint 38278 | -6/Garrison | Garrison Relay disabled 38738 | -6/Garrison | Build established: Botlord-Assassin 39577 | -6/Garrison | Build established: Botlord-Mutant 41215 | -6/Garrison | Entered Factory 41215 | -6/Factory | Accompanied by 11 allies 41273 | -6/Factory | Identified exit to Garrison 41296 | -6/Factory | Entered Garrison 41296 | -6/Garrison | Accompanied by 11 allies 41551 | -6/Garrison | Triggered checkpoint 41633 | -6/Garrison | Garrison Relay disabled 41746 | -6/Garrison | Triggered checkpoint 42116 | -6/Garrison | Triggered checkpoint 42121 | -6/Garrison | Triggered checkpoint 42348 | -6/Garrison | Discovered new exit (range 10) 42882 | -6/Garrison | Build established: Commander-Mutant 42908 | -6/Garrison | Phase Generator disabled 42927 | -6/Garrison | Discovered new exit (range 12) 43080 | -6/Garrison | Discovered new exit (range 11) 43115 | -6/Garrison | Expanded RIF knowledge: Patrol Navigation 43252 | -6/Garrison | Triggered checkpoint 43278 | -6/Garrison | Garrison Relay disabled 43446 | -6/Garrison | Triggered checkpoint 43528 | -6/Garrison | Garrison Relay disabled 43815 | -6/Garrison | Triggered checkpoint 43818 | -6/Garrison | Lost 3 parts (1u2w) 43829 | -6/Garrison | Garrison Relay disabled 46371 | -6/Garrison | Build established: Botlord-Skirmisher 46745 | -6/Garrison | Entered Factory 46745 | -5/Factory | Accompanied by 16 allies 46745 | -5/Factory | Evolved 2 slots: Utility x2 46808 | -5/Factory | Identified exit to Garrison 46845 | -5/Factory | Entered Garrison 46845 | -5/Garrison | Accompanied by 16 allies 46955 | -5/Garrison | Triggered checkpoint 46998 | -5/Garrison | Garrison Relay disabled 47138 | -5/Garrison | Triggered checkpoint 47688 | -5/Garrison | Triggered checkpoint 47895 | -5/Garrison | Spotted B-75 Beast 47929 | -5/Garrison | Destroyed B-75 Beast 48120 | -5/Garrison | Triggered checkpoint 48406 | -5/Garrison | Build established: Commander-Mutant 48465 | -5/Garrison | Discovered new exit (range 15) 48776 | -5/Garrison | Discovered new exit (range 10) 48794 | -5/Garrison | Expanded RIF knowledge: Structural Interface 48849 | -5/Garrison | Spotted B-75 Beast 49075 | -5/Garrison | Assimilated Beast 6a with formatsys_high 49311 | -5/Garrison | Triggered checkpoint 49627 | -5/Garrison | Discovered new exit (range 4) 49656 | -5/Garrison | Triggered checkpoint 49701 | -5/Garrison | Garrison Relay disabled 49730 | -5/Garrison | Phase Generator disabled 49926 | -5/Garrison | Triggered checkpoint 49956 | -5/Garrison | Garrison Relay disabled 50707 | -5/Garrison | Garrison Relay disabled 51234 | -5/Garrison | Build established: Botlord-Mutant 52119 | -5/Garrison | Destroyed Beast 6a 52289 | -5/Garrison | Entered Factory 52289 | -5/Factory | Accompanied by 21 allies 52589 | -5/Factory | First assault squad dispatched 52708 | -5/Factory | Identified exit to Garrison 52746 | -5/Factory | Entered Garrison 52746 | -5/Garrison | Accompanied by 15 allies 52754 | -5/Garrison | Expanded RIF knowledge: Command Fork 53012 | -5/Garrison | Triggered checkpoint 53224 | -5/Garrison | Triggered checkpoint 53391 | -5/Garrison | Build established: Commander-Mutant 53414 | -5/Garrison | Triggered checkpoint 53730 | -5/Garrison | Triggered checkpoint 53957 | -5/Garrison | Discovered new exit (range 10) 54081 | -5/Garrison | Build established: Botlord-Mutant 54119 | -5/Garrison | Discovered new exit (range 7) 54406 | -5/Garrison | Triggered checkpoint 54434 | -5/Garrison | Garrison Relay disabled 54610 | -5/Garrison | Triggered checkpoint 54625 | -5/Garrison | Garrison Relay disabled 54847 | -5/Garrison | High security lockdown imminent 54927 | -5/Garrison | High security lockdown engaged 54931 | -5/Garrison | Build established: Botlord-Tank 55047 | -5/Garrison | P-70 Sage assimilated allied Sentinel 6k 55084 | -5/Garrison | Released all parts (8) 55089 | -5/Garrison | Core integrity fell below 50% 55095 | -5/Garrison | Core integrity fell below 20% 55111 | -5/Garrison | Destroyed by Y-64 Sentinel with Wave Gun Last Messages --------------- 55090_ H-66 Slayer unfolds itself. 55090_ P-70 Sage unfolds itself. 55090_ E-15 Imp unfolds itself. 55090_ C-30 ARC bursts open, deploying its payload. 55090_ G-67 Veteran unfolds itself. 55090_ G-50 Soldier unfolds itself. 55090_ I-47 Archangel unfolds itself. 55090_ Penetrated by Slug. 55090_ Slug penetrates G-50 Soldier. 55090_ E-15 Imp destroyed. 55090_ Slammed into G-50 Soldier. 55091_ Penetrated by Slug. 55092_ System corrupted: Matter fused (-6). 55094_ Slug penetrates Wall. 55096_ Slammed into M-28 Smith. 55096_ Destabilizing: Core damaged (-20). 55098_ Slammed into P-70 Sage. 55099_ Acquired 1 matter. 55103_ Penetrated by Slug. 55103_ P-70 Sage resets M-28 Smith, system corruption cleaned. Map ----- +----------------------------------------------------+ | ?????????????????????????????????????????????????? | | ?????????????????????????????????????????????????? | | ?????????????????????????????????????????????????? | | ?????????????????????????????????????????????????? | | ?????????????????????????????????????????????????? | | ?????????????????????????????????????????????????? | | ?????????????????????????????????????????????????? | | ?????????????????????????????????????????????????? | | ?????????????????????????????????????????????????? | | ?????????????????????????????????????????????????? | | ?????????????????????????????????????????????????? | | ?????????????????????????????????????????????????? | | ?????????????????????????????????????????????##### | | ?????????????????????????????????????????????# # | | ???????????????????????????????????????####### =[# | | ???????????????????????????????????????#!! !%% | | ?????????????????????######????????????#! !######+ | | ?????????????????????# Y #???????????#""!""#???# | | ?????#!!!#####???????#Y